bitfinex/quotes_SOLUSD_20250902
["timestamp","ask_amount","ask_price","bid_price","bid_amount"]
[1756793470191,39.18,204.25,204.19,8.94267849]
[1756793470501,0.7,204.25,204.19,0.72]
[1756793471509,39.18,204.26,204.2,4.89715964]
[1756793473389,39.88,204.26,204.2,4.89715964]
[1756793473901,0.7,204.25,204.18,4.89763933]
[1756793474107,0.7,204.24,204.18,4.89763933]
[1756793474274,26.0,204.25,204.18,4.89763933]
[1756793474474,26.0,204.23,204.14,0.03]
[1756793474676,39.18,204.22,204.14,0.03]
[1756793474898,39.88,204.22,204.14,0.03]
[1756793475490,39.88,204.22,204.14,4.92853806]
[1756793475675,39.18,204.21,204.16,3.45820097]
[1756793475881,26.7,204.24,204.17,0.72]
[1756793476082,39.18,204.23,204.17,0.72]
[1756793476904,39.18,204.23,204.17,4.17820097]
[1756793477095,39.18,204.23,204.17,0.72]
[1756793477396,39.88,204.23,204.17,0.72]
[1756793477578,44.77663884,204.23,204.15,4.89813838]
[1756793477901,0.7,204.22,204.15,5.61813838]
[1756793479004,26.0,204.24,204.16,13.59559401]
[1756793479206,0.7,204.25,204.18,3.45820097]
[1756793479700,0.7,204.24,204.18,4.89763933]
[1756793480190,0.7,204.24,204.18,5.61763933]
[1756793480404,0.7,204.23,204.18,4.89763933]
[1756793480621,0.7,204.22,204.18,78.89763933]
[1756793481674,0.7,204.21,204.15,4.89835904]
[1756793481993,65.18,204.23,204.16,0.72]
[1756793482196,65.18,204.23,204.16,4.17820097]
[1756793482388,0.7,204.22,204.15,4.89835904]
[1756793482702,65.18,204.23,204.15,4.89835904]
[1756793482703,0.7,204.21,204.15,4.89835904]
[1756793484611,0.7,204.21,204.15,78.89835904]
[1756793484793,0.7,204.2,204.15,78.89835904]
[1756793484991,0.7,204.19,204.14,5.64854145]
[1756793485301,0.7,204.22,204.15,4.17820097]
[1756793485488,39.16,204.23,204.16,0.72]
[1756793485676,0.7,204.24,204.17,3.45820097]
[1756793485880,39.86,204.24,204.18,5.61763933]
[1756793486519,0.06,204.23,204.18,5.61763933]
[1756793486696,0.06,204.23,204.19,0.72]
[1756793486886,0.76,204.23,204.19,0.72]
[1756793487089,0.76,204.23,204.18,4.89763933]
[1756793487388,0.76,204.23,204.18,5.61763933]
[1756793488083,0.7,204.22,204.18,78.89763933]
[1756793488604,0.7,204.22,204.18,79.61763933]
[1756793488788,0.7,204.21,204.18,78.89763933]
[1756793488990,0.7,204.21,204.18,4.89763933]
[1756793489381,0.7,204.21,204.16,4.89811912]
[1756793489707,0.7,204.21,204.17,0.72]
[1756793490196,0.06,204.23,204.18,0.72]
[1756793490510,0.76,204.23,204.18,0.72]
[1756793490893,0.76,204.23,204.19,0.72]
[1756793491389,0.76,204.23,204.16,19.35695747]
[1756793491593,0.76,204.23,204.17,0.67847827]
[1756793492000,0.76,204.23,204.17,74.67847827]
[1756793493518,0.76,204.23,204.18,4.89763933]
[1756793493912,0.7,204.22,204.18,4.89763933]
[1756793494585,0.7,204.22,204.18,5.61763933]
[1756793495490,5.58692867,204.21,204.14,4.92858433]
[1756793495689,39.16,204.2,204.14,4.92858433]
[1756793495915,0.69,204.19,204.14,0.03]
[1756793496387,39.16,204.2,204.14,0.03]
[1756793496592,0.69,204.18,204.14,0.03]
[1756793497287,26.0,204.17,204.14,0.03]
[1756793497492,39.16,204.16,204.14,0.03]
[1756793497720,39.85,204.16,204.14,0.03]
[1756793498301,0.69,204.15,204.14,0.03]
[1756793498717,26.0,204.13,204.11,0.03]
[1756793498922,39.16,204.12,204.09,0.03]
[1756793499216,26.0,204.1,204.09,0.03]
[1756793499595,31.58955903,204.1,204.09,0.03]
[1756793500404,0.69,204.1,204.09,0.03]
[1756793500612,39.85,204.1,204.09,0.03]
[1756793501518,26.0,204.12,204.09,0.03]
[1756793501719,26.0,204.12,204.09,0.73]
[1756793501938,39.16,204.12,204.1,0.7]
[1756793502094,39.16,204.14,204.11,0.7]
[1756793502298,39.16,204.15,204.11,0.7]
[1756793502526,39.16,204.15,204.1,0.7]
[1756793503416,39.16,204.15,204.09,0.03]
[1756793503417,0.69,204.2,204.11,0.7]
[1756793503621,39.16,204.19,204.11,0.7]
[1756793504124,65.85,204.19,204.11,0.7]
[1756793504333,0.69,204.19,204.11,0.7]
[1756793504536,0.06,204.23,204.13,5.53783104]
[1756793504537,0.69,204.21,204.13,5.53783104]
[1756793504707,39.16,204.2,204.14,0.7]
[1756793505129,39.16,204.2,204.15,4.89835904]
[1756793505435,39.16,204.21,204.16,0.7]
[1756793505721,39.16,204.21,204.17,0.7]
[1756793505928,39.16,204.21,204.18,0.7]
[1756793506723,39.16,204.21,204.16,74.0]
[1756793506898,39.16,204.21,204.16,74.7]
[1756793507095,39.16,204.21,204.17,4.89787921]
[1756793507600,0.69,204.2,204.1,0.03]
[1756793507804,26.0,204.18,204.11,4.89931899]
[1756793508019,39.16,204.17,204.11,4.89931899]
[1756793508416,0.69,204.16,204.1,0.03]
[1756793508626,0.69,204.16,204.1,4.92955898]
[1756793510702,0.69,204.16,204.1,78.92955898]
[1756793512734,0.69,204.16,204.1,79.62955898]
[1756793512933,39.83,204.16,204.1,79.62955898]
[1756793513605,39.14,204.19,204.14,26.0]
[1756793514012,39.14,204.19,204.15,0.7]
[1756793514220,39.14,204.19,204.09,5.53783104]
[1756793514650,39.83,204.19,204.06,19.91532968]
[1756793514823,0.69,204.18,204.04,24.50457491]
[1756793515332,0.69,204.18,204.07,12.25069828]
[1756793515533,13.59559401,204.18,204.07,12.25069828]
[1756793515716,0.69,204.17,204.07,12.25069828]
[1756793515915,0.69,204.16,204.07,12.25069828]
[1756793516118,0.69,204.16,204.07,12.68069828]
[1756793516312,0.69,204.16,204.07,17.58097759]
[1756793516731,0.69,204.16,204.07,91.15097759]
[1756793516938,0.69,204.16,204.08,0.43]
[1756793517745,0.69,204.16,204.07,78.90027931]
[1756793517746,6.97052278,204.16,204.07,78.90027931]
[1756793517951,35.12809426,204.15,204.07,78.90027931]
[1756793518244,39.83,204.14,204.07,78.90027931]
[1756793518449,0.69,204.13,204.07,78.90027931]
[1756793518637,9.12809426,204.12,204.05,5.10075373]
[1756793518960,0.69,204.11,204.05,0.2]
[1756793519115,22.03368827,204.1,204.05,0.2]
[1756793519320,39.83,204.09,204.05,0.2]
[1756793519736,0.69,204.08,204.05,0.2]
[1756793520145,0.69,204.07,204.05,0.2]
[1756793520938,0.69,204.06,204.05,0.2]
[1756793521237,0.69,204.07,203.97,12.2864975]
[1756793521539,5.331432,204.08,203.96,19.13342505]
[1756793521726,5.331432,204.08,203.97,74.0]
[1756793521911,39.14,204.08,203.97,74.0]
[1756793522427,39.14,204.08,203.98,17.79393457]
[1756793522637,53.871518,204.09,203.98,22.69637598]
[1756793523134,53.871518,204.09,203.98,17.15854494]
[1756793523436,39.14,204.1,204.0,2.216705]
[1756793523638,39.14,204.1,204.01,26.0]
[1756793524640,39.14,204.1,204.02,4.90148024]
[1756793524831,39.83,204.11,204.02,17.15518085]
[1756793525726,0.69,204.1,204.02,17.15518085]
[1756793526249,0.69,204.1,204.02,91.15518085]
[1756793526918,39.14,204.11,204.02,91.15518085]
[1756793526919,0.69,204.09,204.02,78.90148024]
[1756793528114,0.69,204.08,204.02,78.90148024]
[1756793528314,0.69,204.08,204.02,74.0]
[1756793528514,0.69,204.07,204.02,74.0]
[1756793528746,0.69,204.06,204.01,4.90168332]
[1756793528949,0.69,204.05,204.01,4.90168332]
[1756793529139,0.69,204.04,204.0,4.90191651]
[1756793529448,52.73559401,204.07,204.0,4.90191651]
[1756793529650,13.59559401,204.07,204.0,4.90191651]
[1756793530342,39.83,204.08,203.99,4.90220108]
[1756793530724,0.69,204.08,203.99,4.90220108]
[1756793530921,39.14,204.07,203.99,4.90220108]
[1756793531346,39.83,204.07,203.99,4.90220108]
[1756793531750,44.73028146,204.07,203.98,26.0]
[1756793532061,0.69,204.06,203.98,26.0]
[1756793533023,14.732965,204.08,203.98,26.0]
[1756793533233,2.21735123,204.03,203.97,2.21735123]
[1756793533453,2.21735123,204.04,203.98,2.9e-07]
[1756793533748,2.21735123,204.02,203.97,94.99]
[1756793533948,2.21735123,204.01,203.97,94.99]
[1756793534548,2.21735123,204.0,203.97,94.99]
[1756793535234,2.21735123,204.0,203.97,134.13]
[1756793537150,2.21735123,203.98,203.97,80.3]
[1756793538350,2.21735123,203.98,203.95,119.45]
[1756793538655,2.21735123,203.97,203.95,119.45]
[1756793539150,2.21735123,203.96,203.95,39.15]
[1756793539847,2.21735123,203.96,203.95,0.03]
[1756793541453,2.56278258,204.04,203.95,0.03]
[1756793541632,2.21735123,203.99,203.95,15.21031625]
[1756793543340,2.21735123,203.98,203.95,15.21031625]
[1756793543854,2.21735123,203.96,203.95,15.21031625]
[1756793544054,2.21735123,203.96,203.95,39.15]
[1756793545757,0.69,204.03,203.95,39.15]
[1756793545959,2.21735123,203.98,203.96,0.49029221]
[1756793546454,2.21735123,203.97,203.96,0.49029221]
[1756793546658,2.21735123,203.97,203.96,39.61029221]
[1756793546961,2.21735123,203.98,203.96,39.61029221]
[1756793547947,0.69,204.03,203.96,39.61029221]
[1756793548261,2.21735123,203.97,203.95,0.03]
[1756793548461,8.86940492,204.0,203.95,39.15]
[1756793548462,2.21735123,203.96,203.95,39.15]
[1756793549343,2.21735123,203.96,203.95,0.03]
[1756793549547,3.46694392,203.96,203.95,0.03]
[1756793553770,0.69,203.98,203.95,0.03]
[1756793553982,3.46694392,203.96,203.95,0.03]
[1756793556267,0.65,203.96,203.95,0.03]
[1756793556781,4.11694392,203.96,203.95,0.03]
[1756793557577,0.65,203.99,203.95,0.03]
[1756793557751,3.46694392,203.99,203.96,39.59029221]
[1756793557955,0.06,203.97,203.96,39.59029221]
[1756793559155,3.52694392,203.97,203.96,39.59029221]
[1756793559767,3.52694392,203.97,203.96,0.49029221]
[1756793559969,3.52694392,203.97,203.96,39.59029221]
[1756793560956,0.06,203.97,203.96,39.59029221]
[1756793561172,3.52694392,203.97,203.96,39.59029221]
[1756793561966,3.52694392,203.97,203.96,0.49029221]
[1756793562168,4.17694392,203.97,203.96,39.59029221]
[1756793562365,4.17694392,203.97,203.96,39.1]
[1756793563872,0.71,203.97,203.95,39.62031625]
[1756793564079,3.46694392,203.96,203.95,39.62031625]
[1756793565783,3.46694392,203.96,203.95,0.52031625]
[1756793565989,3.46694392,203.96,203.95,39.62031625]
[1756793566483,4.11694392,203.96,203.95,39.62031625]
[1756793566787,4.11694392,203.96,203.95,39.13]
[1756793567160,4.11694392,203.96,203.95,0.03]
[1756793571871,3.46694392,203.96,203.95,0.03]
[1756793572078,4.11694392,203.96,203.95,0.03]
[1756793573889,0.65,203.96,203.95,0.03]
[1756793574184,4.11694392,203.96,203.95,0.03]
[1756793576779,0.0446145,203.95,203.93,145.58]
[1756793576985,3.51155842,203.95,203.93,145.58]
[1756793577486,0.0446145,203.95,203.93,145.58]
[1756793578180,0.0446145,203.95,203.94,0.49034029]
[1756793578894,3.51155842,203.95,203.94,0.49034029]
[1756793579468,0.0446145,203.95,203.94,0.49034029]
[1756793579971,0.0446145,203.95,203.94,80.79034029]
[1756793580487,0.0446145,203.95,203.94,119.85034029]
[1756793580674,0.0446145,203.95,203.94,119.36]
[1756793581097,0.0446145,203.95,203.94,39.06]
[1756793581276,0.0446145,203.95,203.94,43.01728421]
[1756793581992,0.0446145,203.95,203.94,123.31728421]
[1756793582194,0.0446145,203.95,203.94,151.11253793]
[1756793583192,0.0446145,203.95,203.94,112.05253793]
[1756793583489,4.11694392,204.03,203.98,26.0]
[1756793583692,0.65,204.02,204.01,26.0]
[1756793583865,0.65,204.02,204.01,65.06]
[1756793584070,0.65,204.02,203.99,0.4902201]
[1756793584269,0.65,204.02,204.0,26.0]
[1756793584488,4.11694392,204.01,204.0,26.0]
[1756793584693,0.65,204.01,204.0,65.06]
[1756793585000,4.11694392,204.01,204.0,65.06]
[1756793585375,0.65,204.01,204.0,69.96196078]
[1756793585586,3.46694392,204.02,204.0,69.96196078]
[1756793587609,0.69,204.05,204.0,82.21686274]
[1756793587897,0.69,204.05,204.0,85.68380666]
[1756793588304,3.46694392,204.03,204.0,43.15686274]
[1756793588515,4.15694392,204.02,204.01,39.04]
[1756793589076,3.46694392,204.03,204.01,39.04]
[1756793589476,3.46694392,204.04,204.02,17.15518085]
[1756793589778,4.15694392,204.04,204.03,39.04]
[1756793590199,0.69,204.06,204.03,39.04]
[1756793590384,3.46694392,204.04,204.03,39.04]
[1756793590592,4.15694392,204.04,204.02,17.15518085]
[1756793590799,4.15694392,204.03,204.02,17.15518085]
[1756793590996,3.46694392,204.03,204.02,56.19518085]
[1756793591273,0.75,204.08,204.02,81.1927301]
[1756793591480,3.46694392,204.07,204.02,81.1927301]
[1756793591707,0.75,204.08,204.05,26.0]
[1756793591915,4.21694392,204.08,204.06,39.04]
[1756793592288,3.52694392,204.08,204.06,39.04]
[1756793592497,0.06,204.08,204.06,39.04]
[1756793593398,4.21694392,204.08,204.06,39.04]
[1756793593706,4.21694392,204.08,204.07,4.90027931]
[1756793594214,0.06,204.11,204.07,4.90027931]
[1756793594416,1e-08,204.11,204.1,29.46694392]
[1756793594588,1e-08,204.11,204.1,68.48694392]
[1756793594787,1e-08,204.11,204.1,65.02]
[1756793594982,0.06,204.13,204.1,66.1599559]
[1756793595220,0.1,204.18,204.14,3.46694392]
[1756793595384,0.1,204.18,204.15,39.5098359]
[1756793595900,0.1,204.18,204.16,4.89811912]
[1756793596106,0.1,204.18,204.17,39.02]
[1756793597396,1e-08,204.18,204.17,39.50978792]
[1756793597593,0.69000001,204.18,204.16,4.89811912]
[1756793597783,4.15694392,204.17,204.16,39.02]
[1756793598619,4.15694392,204.17,204.13,38.24693824]
[1756793598820,3.46694392,204.14,204.13,38.24693824]
[1756793599516,3.46694392,204.14,204.13,77.24693824]
[1756793599989,3.46694392,204.14,204.13,82.14577721]
[1756793600512,0.69,204.16,204.13,82.14577721]
[1756793600693,3.46694392,204.14,204.13,82.14577721]
[1756793600893,0.69,204.16,204.13,82.14577721]
[1756793601101,3.46694392,204.14,204.13,43.14577721]
[1756793601416,3.46694392,204.14,204.13,82.14577721]
[1756793602915,4.15694392,204.14,204.13,4.89883897]
[1756793603296,4.15694392,204.14,204.13,43.89883897]
[1756793603621,4.15694392,204.14,204.08,4.9000392]
[1756793603824,3.46694392,204.09,204.08,43.9000392]
[1756793604117,4.15694392,204.09,204.08,43.9000392]
[1756793604294,4.15694392,204.09,204.08,4.9000392]
[1756793604488,4.15694392,204.09,204.05,4.90075961]
[1756793604702,3.46694392,204.06,204.05,43.90075961]
[1756793605013,4.15694392,204.06,204.05,43.90075961]
[1756793605215,3.46694392,204.06,204.05,43.90075961]
[1756793606401,3.46694392,204.07,204.05,43.90075961]
[1756793606607,3.46694392,204.09,204.05,56.15265865]
[1756793609019,4.15694392,204.09,204.05,56.15265865]
[1756793609212,3.46694392,204.08,204.05,56.15265865]
[1756793609516,3.46694392,204.06,204.05,17.15265865]
[1756793609720,4.15694392,204.06,204.05,56.15265865]
[1756793609897,3.46694392,204.06,204.05,17.15265865]
[1756793610098,3.46694392,204.06,204.05,56.13265865]
[1756793610598,3.46694392,204.07,204.05,56.13265865]
[1756793611600,2.90661328,204.07,204.05,56.13265865]
[1756793612130,2.21661328,204.06,204.05,56.13265865]
[1756793613209,2.21661328,204.06,204.02,41.6625535]
[1756793613418,2.21661328,204.06,204.03,38.98]
[1756793614527,2.21661328,204.06,204.04,38.98]
[1756793614829,2.90661328,204.07,204.02,42.3125535]
[1756793615020,2.90661328,204.07,204.03,38.98]
[1756793615222,0.69,204.1,204.04,17.1534993]
[1756793615402,0.69,204.12,204.05,39.63]
[1756793615756,0.69,204.15,204.1,2.21661328]
[1756793615906,0.69,204.15,204.11,38.98]
[1756793616105,2.21661328,204.16,204.11,38.98]
[1756793616324,0.69,204.16,204.11,41.19661328]
[1756793616526,0.69,204.16,204.11,41.84661328]
[1756793617012,2.90661329,204.18,204.12,2.21661328]
[1756793617215,2.90661329,204.18,204.14,17.1450965]
[1756793617525,2.21661329,204.18,204.15,38.98]
[1756793617702,0.69,204.17,204.15,38.98]
[1756793617909,2.90661328,204.16,204.15,38.98]
[1756793618727,0.69,204.16,204.15,38.98]
[1756793619304,2.90661328,204.16,204.15,43.87835904]
[1756793619730,2.90661328,204.16,204.15,4.89835904]
[1756793621333,1e-08,204.18,204.14,17.1450965]
[1756793621534,1e-08,204.18,204.15,38.96]
[1756793621739,2.21661328,204.16,204.14,4.898599]
[1756793621923,2.90661328,204.15,204.14,4.898599]
[1756793622345,2.90661328,204.15,204.08,4.9000392]
[1756793622346,13.59559401,204.14,204.08,4.9000392]
[1756793622651,0.69,204.13,204.09,38.96]
[1756793622818,0.69,204.12,204.08,17.1501372]
[1756793623017,13.59559402,204.18,204.08,43.8600392]
[1756793623018,0.69,204.11,204.08,43.8600392]
[1756793623219,0.69,204.1,204.08,43.8600392]
[1756793623732,2.90661328,204.09,204.08,43.8600392]
[1756793624218,2.90661328,204.09,204.02,12.25348107]
[1756793624434,0.69,204.08,204.03,38.96]
[1756793624639,0.69,204.08,204.03,39.61]
[1756793624948,0.69,204.1,204.03,38.96]
[1756793625118,0.69,204.1,204.03,39.61]
[1756793625649,2.21661328,204.06,204.04,17.1534993]
[1756793625950,2.21661328,204.05,204.04,17.1534993]
[1756793626445,2.21661328,204.05,204.04,56.1134993]
[1756793627049,0.69,204.07,204.04,56.1134993]
[1756793627227,2.21661328,204.05,204.04,56.1134993]
[1756793628533,0.69,204.09,204.04,56.1134993]
[1756793628740,2.21661328,204.05,204.04,56.1134993]
[1756793629323,0.69,204.1,204.04,56.7634993]
[1756793629635,2.21661328,204.08,204.04,56.7634993]
[1756793629842,2.21661328,204.08,204.05,0.65]
[1756793630042,2.21661328,204.08,204.04,56.1134993]
[1756793630043,0.69,204.17,204.09,26.0]
[1756793630222,2.21661328,204.17,204.12,2.21661328]
[1756793630422,2.21661329,204.18,204.13,38.96]
[1756793630646,2.21661329,204.18,204.13,39.61]
[1756793630849,1e-08,204.18,204.13,41.82661328]
[1756793631034,1e-08,204.18,204.14,1.1398599]
[1756793631354,2.21661328,204.15,204.1,0.65]
[1756793631529,2.21661328,204.13,204.09,26.0]
[1756793631726,2.21661328,204.13,204.11,26.0]
[1756793633756,2.21661328,204.13,204.12,4.89907897]
[1756793634249,2.21661328,204.13,204.12,43.85907897]
[1756793634764,2.90661328,204.13,204.12,43.85907897]
[1756793635064,2.21661328,204.13,204.12,43.85907897]
[1756793636538,2.21661328,204.13,204.11,38.94]
[1756793636735,2.90661328,204.12,204.11,38.94]
[1756793637041,2.90661328,204.12,204.1,43.83955903]
[1756793637338,2.21661328,204.11,204.1,43.83955903]
[1756793638063,2.90661328,204.11,204.1,43.83955903]
[1756793638556,2.21661328,204.11,204.1,43.83955903]
[1756793638964,2.90661328,204.11,204.1,43.83955903]
[1756793639162,2.90661328,204.11,204.07,4.90027931]
[1756793639345,0.69,204.1,204.08,38.94]
[1756793639537,2.21661328,204.09,204.07,4.90027931]
[1756793639739,0.69,204.1,204.08,38.94]
[1756793640358,0.69,204.09,204.07,43.84027931]
[1756793640537,0.69,204.11,204.07,43.84027931]
[1756793640737,2.21661328,204.08,204.07,43.84027931]
[1756793641370,2.21661328,204.11,204.07,56.74097759]
[1756793642236,2.21661328,204.1,204.08,0.65]
[1756793642441,2.21661328,204.12,204.09,39.59]
[1756793642652,2.21661328,204.11,204.09,39.59]
[1756793643360,2.21661328,204.11,204.1,4.89955903]
[1756793644545,2.21661328,204.11,204.1,17.14845662]
[1756793644741,2.21661328,204.11,204.1,17.79845662]
[1756793645065,2.21661328,204.11,204.1,17.14845662]
[1756793646664,2.21661328,204.11,204.1,12.24889759]
[1756793646966,2.21661328,204.11,204.1,51.18889759]
[1756793647461,2.21661328,204.11,204.1,51.83889759]
[1756793647874,2.21661328,204.11,204.1,56.08845662]
[1756793648969,2.87661328,204.11,204.1,56.08845662]
[1756793649168,2.87661328,204.11,204.1,4.89955903]
[1756793649473,2.87661328,204.11,204.06,38.92]
[1756793649645,2.21661328,204.07,204.06,38.92]
[1756793649839,2.87661328,204.07,204.04,0.03]
[1756793650049,2.21661328,204.05,204.04,0.03]
[1756793650467,2.87661328,204.05,204.04,0.03]
[1756793651741,0.66,204.05,204.04,0.03]
[1756793652053,2.87661328,204.05,204.04,4.9309998]
[1756793652888,1e-08,204.18,204.05,13.59559401]
[1756793653058,1e-08,204.18,204.1,14.69]
[1756793653369,1e-08,204.18,204.14,26.0]
[1756793653672,2.21661328,204.17,204.15,3.61702158]
[1756793653836,2.21661328,204.16,204.15,39.12]
[1756793654042,2.21661328,204.16,204.15,47.63639487]
[1756793654341,2.87661328,204.17,204.15,47.63639487]
[1756793654543,1e-08,204.18,204.16,6.97446102]
[1756793654750,1e-08,204.18,204.17,42.73803583]
[1756793657038,1e-08,204.18,204.17,47.63591504]
[1756793657242,1e-08,204.21,204.17,63.23701428]
[1756793657454,2.97661328,204.25,204.19,2.21661328]
[1756793657651,2.97661328,204.25,204.2,42.69803583]
[1756793657854,2.97661328,204.25,204.21,3.61803583]
[1756793657855,0.66,204.24,204.21,3.61803583]
[1756793658167,0.66,204.24,204.22,3.61803583]
[1756793658373,0.66,204.24,204.23,3.61803583]
[1756793658674,2.31661328,204.25,204.23,3.61803583]
[1756793658850,2.97661328,204.25,204.24,3.61803583]
[1756793659171,0.76,204.25,204.24,8.51423637]
[1756793659377,2.31661328,204.25,204.24,4.89620054]
[1756793659550,2.97661328,204.25,204.24,8.50644543]
[1756793660044,0.06,204.26,204.24,8.50644543]
[1756793660247,2.31661328,204.29,204.26,26.0]
[1756793660446,2.21661328,204.29,204.27,29.61024489]
[1756793660806,0.06,204.3,204.28,3.61024489]
[1756793660978,0.06,204.3,204.29,3.6046376]
[1756793661348,0.06,204.3,204.29,8.4996398]
[1756793661548,0.06,204.3,204.29,8.49709181]
[1756793662086,2.93661328,204.3,204.29,4.8950022]
[1756793663081,2.27661328,204.3,204.29,8.49509526]
[1756793664378,2.21661328,204.3,204.29,8.49509526]
[1756793666886,0.72,204.32,204.29,8.49509526]
[1756793667093,2.21661328,204.3,204.28,12.2378272]
[1756793667266,2.21661328,204.3,204.29,3.58950238]
[1756793667467,2.27661328,204.3,204.29,3.58950238]
[1756793667966,2.27661328,204.3,204.29,3.58800596]
[1756793669286,2.93661328,204.3,204.29,4.8950022]
[1756793671276,2.93661328,204.3,204.25,17.13586291]
[1756793671481,2.21661328,204.26,204.25,17.13586291]
[1756793671686,2.21661328,204.26,204.25,20.72189456]
[1756793672385,2.21661328,204.26,204.25,20.72190606]
[1756793672890,0.72,204.3,204.25,20.72190606]
[1756793673186,2.21661328,204.26,204.25,17.82586291]
[1756793673385,2.21661328,204.26,204.25,21.41109336]
[1756793673590,3.45685961,204.26,204.25,21.41109336]
[1756793673985,3.45685961,204.26,204.25,20.72109336]
[1756793675070,3.45685961,204.26,204.25,20.72256514]
[1756793676389,0.06,204.3,204.25,21.40256514]
[1756793676582,3.45685961,204.27,204.26,3.58670223]
[1756793677593,3.45685961,204.27,204.26,20.7217262]
[1756793677978,0.73,204.3,204.26,20.7217262]
[1756793678299,0.67,204.29,204.27,3.58670223]
[1756793678470,0.67,204.29,204.28,3.58308109]
[1756793679303,4.12685961,204.29,204.28,3.58308109]
[1756793680186,0.06,204.3,204.28,8.47832291]
[1756793680375,3.45685961,204.29,204.28,4.89524182]
[1756793680575,3.45685961,204.29,204.28,8.47649791]
[1756793681995,3.45685961,204.29,204.28,4.89524182]
[1756793682203,3.45685961,204.29,204.28,8.47603572]
[1756793683796,3.51685961,204.3,204.28,8.47603572]
[1756793683972,3.51685961,204.3,204.29,8.4757961]
[1756793685397,4.18685961,204.3,204.29,8.4757961]
[1756793685597,4.18685961,204.3,204.29,3.58393566]
[1756793686375,4.18685961,204.3,204.29,3.58409831]
[1756793686589,4.18685961,204.3,204.26,17.13502397]
[1756793686902,3.45685961,204.29,204.26,17.81502397]
[1756793687496,3.45685961,204.29,204.26,17.13502397]
[1756793687695,3.45685961,204.29,204.28,4.89524182]
[1756793688496,4.12685961,204.29,204.28,4.89524182]
[1756793688703,3.45685961,204.29,204.28,4.89524182]
[1756793688887,4.12685961,204.29,204.28,4.89524182]
[1756793689808,4.12685961,204.29,204.25,0.03]
[1756793689981,3.45685961,204.26,204.25,0.03]
[1756793690188,3.45685961,204.26,204.25,3.61798809]
[1756793690840,3.45685961,204.26,204.25,8.51394892]
[1756793691104,4.12685961,204.26,204.25,8.51394892]
[1756793694099,4.12685961,204.26,204.25,4.92596083]
[1756793694312,4.12685961,204.26,204.25,8.52123932]
[1756793696008,4.12685961,204.26,204.25,3.62993685]
[1756793697113,4.12685961,204.26,204.25,8.52589768]
[1756793700096,3.45685961,204.26,204.25,8.52589768]
[1756793700292,17.72245362,204.26,204.25,3.62993685]
[1756793700495,17.72245362,204.26,204.25,8.52589768]
[1756793700707,13.59559401,204.29,204.25,9.20589768]
[1756793700911,3.45685961,204.27,204.26,4.27993685]
[1756793701115,3.45685961,204.27,204.26,3.59993685]
[1756793701306,3.45685961,204.27,204.26,8.49565798]
[1756793701629,0.06,204.3,204.26,20.73496082]
[1756793701806,3.45685961,204.29,204.27,4.27993685]
[1756793702003,3.45685961,204.29,204.28,3.59993685]
[1756793702723,3.51685961,204.29,204.28,3.59993685]
[1756793703509,3.51685961,204.29,204.28,8.49517867]
[1756793705323,3.51685961,204.29,204.28,29.62170175]
[1756793705630,0.06,204.29,204.28,30.30170175]
[1756793705938,3.51685961,204.3,204.29,26.0]
[1756793706118,3.51685961,204.3,204.29,29.62170175]
[1756793706318,3.51685961,204.3,204.29,29.62140136]
[1756793706535,3.51685961,204.3,204.29,30.30140136]
[1756793706839,3.51685961,204.3,204.29,29.62140136]
[1756793707426,3.51685961,204.3,204.29,34.51640356]
[1756793708134,4.17685961,204.3,204.29,8.51640356]
[1756793708914,3.51685961,204.3,204.29,8.51640356]
[1756793709115,0.06,204.3,204.29,8.51640356]
[1756793709441,0.06,204.3,204.29,35.19640356]
[1756793709743,3.51685961,204.3,204.29,35.19640356]
[1756793710322,0.06,204.3,204.29,9.19640356]
[1756793710859,3.51685961,204.3,204.29,9.19640356]